bitfinex-derivatives/quotes_ETHF0:USTF0_20250520
["timestamp","ask_amount","ask_price","bid_price","bid_amount"]
[1747758560898,0.00607054,2472.6,2472.5,9.01645]
[1747758561397,0.00607054,2472.6,2472.5,11.75645]
[1747758562199,0.00607054,2472.6,2472.5,12.37509129]
[1747758562491,0.00607054,2472.6,2472.5,14.43749129]
[1747758563593,1.00057425,2472.9,2472.8,0.80856]
[1747758563895,1.3307923,2473.1,2473.0,0.80849]
[1747758564291,1.3307923,2473.1,2473.0,9.30349]
[1747758564695,1.3307923,2473.1,2473.0,14.30349]
[1747758565198,1.3307923,2473.1,2473.0,17.04349]
[1747758565698,1.3307923,2473.1,2473.0,17.66224179]
[1747758565889,0.80843,2473.2,2473.1,0.80842]
[1747758566091,0.80843,2473.2,2473.1,6.12172]
[1747758566598,0.80843,2473.2,2473.1,6.20658477]
[1747758566798,0.00607054,2473.3,2473.2,0.80842]
[1747758568299,0.80842,2473.2,2473.1,9.96174676]
[1747758568499,0.81448054,2473.3,2473.2,0.80842]
[1747758569400,0.80842,2473.2,2473.1,11.7614553]
[1747758569588,2.20482,2473.2,2473.1,12.5699153]
[1747758569793,2.20482,2473.2,2473.1,11.7614553]
[1747758570196,2.20482,2473.2,2473.1,9.8299153]
[1747758570398,2.20482,2473.2,2473.1,9.71073758]
[1747758570996,0.00607054,2473.3,2473.2,0.80842]
[1747758571797,0.00607054,2473.3,2473.2,1.13183281]
[1747758572390,1.3307923,2474.1,2474.0,0.80816]
[1747758572694,1.3307923,2474.1,2474.0,12.50996]
[1747758573196,1.3307923,2474.1,2474.0,15.24996]
[1747758573703,1.3307923,2474.1,2474.0,15.57337281]
[1747758575403,1.3307923,2474.1,2474.0,15.79441779]
[1747758575602,2.1389223,2474.1,2474.0,14.98625779]
[1747758575802,1.3307923,2474.1,2474.0,12.58661779]
[1747758576598,1.3307923,2474.1,2474.0,12.36557281]
[1747758577005,1.3307923,2474.1,2474.0,12.36457281]
[1747758577603,2.1389223,2474.1,2474.0,12.36457281]
[1747758577804,3.4825223,2474.1,2474.0,12.36457281]
[1747758578001,2.6743923,2474.1,2474.0,12.36457281]
[1747758578203,1.3307923,2474.1,2474.0,12.36457281]
[1747758578405,2.15776054,2474.3,2474.2,0.8081]
[1747758579404,0.8081,2474.2,2474.1,3.54811]
[1747758579606,2.1741,2474.2,2474.1,2.74]
[1747758579807,4.89909501,2474.2,2474.1,2.74]
[1747758579995,4.89909501,2474.2,2474.1,3.54813]
[1747758580200,4.89909501,2474.2,2474.0,8.81541281]
[1747758580201,0.80813,2474.1,2474.0,12.36355281]
[1747758580401,2.86683,2474.1,2474.0,12.36355281]
[1747758580709,4.88781,2474.1,2474.0,11.232]
[1747758581400,4.88781,2474.1,2474.0,12.04016]
[1747758584404,4.88781,2474.1,2474.0,11.232]
[1747758584607,4.88781,2474.1,2474.0,2.74]
[1747758584803,9.88781,2474.1,2474.0,2.74]
[1747758585009,4.88781,2474.1,2474.0,2.74]
[1747758585205,0.8082,2473.9,2473.8,0.80822]
[1747758585706,2.82934,2473.9,2473.8,0.80822]
[1747758586102,2.82934,2473.9,2473.8,3.54822]
[1747758586509,2.82934,2473.9,2473.8,2.74]
[1747758586710,2.82934,2473.9,2473.8,3.54823]
[1747758587211,2.82934,2473.9,2473.8,0.80823]
[1747758587708,2.02114,2473.9,2473.6,8.492]
[1747758587914,0.80826,2473.7,2473.6,9.30026]
[1747758588315,1.44776,2473.7,2473.6,9.30026]
[1747758588618,1.44776,2473.7,2473.6,9.6236077]
[1747758588915,0.6395,2473.7,2473.6,9.6236077]
[1747758589117,1.44776,2473.7,2473.6,9.6236077]
[1747758589414,2.72866,2473.7,2473.6,9.6236077]
[1747758590009,1.9204,2473.7,2473.6,9.6236077]
[1747758590215,2.72866,2473.7,2473.6,11.0033077]
[1747758592017,2.72866,2473.7,2473.6,9.6236077]
[1747758592415,2.72866,2473.7,2473.6,8.8153477]
[1747758592817,2.72866,2473.7,2473.6,9.6236377]
[1747758594315,2.72866,2473.7,2473.6,10.9260377]
[1747758596220,0.80826,2473.7,2473.6,10.9260377]
[1747758597516,0.80826,2473.7,2473.6,8.8423477]
[1747758598420,0.80826,2473.7,2473.6,9.6506377]
[1747758599617,0.80826,2473.7,2473.6,8.8423477]
[1747758600319,0.80826,2473.7,2473.6,9.6506377]
[1747758600721,0.80826,2473.7,2473.6,8.8423477]
[1747758601216,6.037365,2473.7,2473.6,0.3233477]
[1747758601418,0.80829,2473.6,2473.5,0.12583751]
[1747758601720,0.80833,2473.5,2473.4,0.29525993]
[1747758601917,3.79833,2473.5,2473.4,0.29525993]
[1747758602119,1.3913,2473.5,2473.4,3.84361993]
[1747758602322,0.80815,2474.1,2473.5,2.02082]
[1747758602621,3.21387054,2474.3,2474.2,0.8081]
[1747758602820,4.02194054,2474.3,2474.2,8.52]
[1747758603127,0.8081,2474.2,2474.1,2.74]
[1747758603314,2.1511,2474.2,2474.1,2.74]
[1747758603516,4.17199501,2474.2,2474.1,2.74]
[1747758604326,0.80816,2474.0,2473.9,8.52]
[1747758604826,2.82922,2474.0,2473.9,8.52]
[1747758605023,4.17222,2474.0,2473.9,8.52]
[1747758605324,0.80822,2473.9,2473.7,9.32824]
[1747758605521,2.15122,2473.9,2473.7,10.64954]
[1747758605724,2.15122,2473.9,2473.8,1.3213]
[1747758606119,4.17236,2473.9,2473.8,4.0613]
[1747758606327,2.15122,2473.9,2473.8,4.0613]
[1747758606722,0.80819,2474.0,2473.9,0.8082]
[1747758606930,0.80811,2474.2,2473.9,1.3151]
[1747758607122,0.80816,2474.0,2473.9,4.0551]
[1747758607326,0.80816,2474.0,2473.9,11.259]
[1747758607626,2.82922,2474.0,2473.9,11.259]
[1747758607826,3.49462,2474.0,2473.9,11.259]
[1747758608127,3.49462,2474.0,2473.9,8.519]
[1747758610629,0.00607054,2474.3,2474.2,0.8081]
[1747758610931,0.8081,2474.2,2474.1,1.3268]
[1747758611133,0.8081,2474.2,2474.1,1.9755]
[1747758611326,0.80813,2474.1,2474.0,2.74]
[1747758611734,4.19871,2474.1,2474.0,2.74]
[1747758611928,0.80813,2474.1,2474.0,2.74]
[1747758612121,0.00607054,2474.3,2474.0,4.0668]
[1747758612321,0.00607054,2474.3,2474.2,0.8081]
[1747758612833,0.00607054,2474.3,2474.0,7.2746]
[1747758613033,0.80813,2474.1,2474.0,8.08276]
[1747758613227,0.80813,2474.1,2474.0,13.83655053]
[1747758614533,0.00607054,2474.3,2474.2,0.8081]
[1747758614832,0.81413054,2474.3,2474.2,0.8081]
[1747758615028,0.81413054,2474.3,2474.2,1.13135972]
[1747758615236,0.00607054,2474.3,2474.2,1.13135972]
[1747758615534,0.00607054,2474.3,2474.2,3.19555972]
[1747758616635,0.00607054,2474.3,2474.2,3.49116476]
[1747758616834,0.81414054,2474.3,2474.2,3.49116476]
[1747758617131,0.00607054,2474.3,2474.2,12.00916476]
[1747758617334,0.81414054,2474.3,2474.2,11.20106476]
[1747758617539,2.83495554,2474.3,2474.2,0.61886476]
[1747758617830,2.83495554,2474.3,2474.2,0.32325972]
[1747758618131,2.83495554,2474.3,2474.2,1.13135972]
[1747758618132,4.23425554,2474.3,2474.2,1.13135972]
[1747758618431,2.02688554,2474.3,2474.2,1.13135972]
[1747758618626,0.00607054,2474.3,2474.2,1.13135972]
[1747758619339,2.83495554,2474.3,2474.2,1.13135972]
[1747758619934,0.81414054,2474.3,2474.2,1.13135972]
[1747758620133,2.83495554,2474.3,2474.2,1.13135972]
[1747758620334,0.81414054,2474.3,2474.2,1.21622449]
[1747758621337,0.81414054,2474.3,2474.2,0.40812449]
[1747758621638,0.81414054,2474.3,2474.2,1.21622449]
[1747758622131,0.00607054,2474.3,2474.2,1.21622449]
[1747758622340,2.1387023,2474.9,2474.8,0.8079]
[1747758622529,1.3307923,2474.9,2474.8,0.8079]
[1747758623131,1.3307923,2474.9,2474.8,4.1992]
[1747758623636,2.1386623,2474.9,2474.8,11.56425972]
[1747758623836,3.5388623,2474.9,2474.8,11.56425972]
[1747758624635,4.228395,2474.9,2474.8,3.06325972]
[1747758625231,4.228395,2474.9,2474.8,0.32325972]
[1747758625539,0.80793,2474.7,2474.6,9.31504054]
[1747758625942,0.80793,2474.7,2474.6,0.81404054]
[1747758626239,0.80793,2474.8,2474.7,0.8079]
[1747758626538,2.08523,2474.8,2474.7,0.8079]
[1747758626838,2.020405,2474.9,2474.7,0.8079]
[1747758626839,3.879,2475.0,2474.7,1.3475]
[1747758627033,3.2078,2475.0,2474.9,0.80787]
[1747758627238,0.00607054,2475.1,2475.0,0.80784]
[1747758627432,2.83407054,2475.1,2475.0,1.3475]
[1747758627636,0.8079,2474.8,2474.7,4.01571]
[1747758627939,0.8079,2474.8,2474.7,10.62781]
[1747758628641,0.8079,2474.8,2474.7,10.62783]
[1747758629039,2.0861,2474.8,2474.7,10.62783]
[1747758629241,2.0861,2474.8,2474.7,10.14310957]
[1747758629642,2.0861,2474.8,2474.7,10.95103957]
[1747758629846,2.0861,2474.8,2474.7,10.14310957]
[1747758630034,2.0861,2474.8,2474.7,0.32320957]
[1747758630229,4.106505,2474.8,2474.7,0.32320957]
[1747758631434,4.106505,2474.8,2474.7,1.13113957]
[1747758631640,0.8079,2474.8,2474.7,1.13110957]
[1747758631840,2.828305,2474.8,2474.7,1.60110957]
[1747758632348,4.138005,2474.8,2474.7,2.40903957]
[1747758632643,4.138005,2474.8,2474.7,2.08583]
[1747758633047,4.138005,2474.8,2474.7,1.2779]
[1747758633243,0.80793,2474.7,2474.6,2.74607054]
[1747758633445,2.11763,2474.7,2474.6,2.74607054]
[1747758633646,4.13812,2474.7,2474.6,2.74607054]
[1747758634346,4.13812,2474.7,2474.6,0.00607054]
[1747758634947,4.13812,2474.7,2474.6,0.32929895]
[1747758635542,4.13812,2474.7,2474.6,1.74449895]
[1747758636143,4.13812,2474.7,2474.6,2.55246895]
[1747758636344,4.13812,2474.7,2474.6,1.74449895]
[1747758636544,4.13812,2474.7,2474.6,0.32929895]
[1747758636751,7.34592,2474.7,2474.6,0.32929895]
[1747758637248,10.61592,2474.7,2474.6,0.32929895]
[1747758637643,7.34592,2474.7,2474.6,0.32929895]
[1747758638646,7.34592,2474.7,2474.6,0.00607054]
[1747758639251,7.34592,2474.7,2474.6,1.30637054]
[1747758640443,7.34592,2474.7,2474.6,0.00607054]
[1747758641047,3.2078,2475.0,2474.9,0.80787]
[1747758641347,1.01020935,2475.1,2475.0,0.80784]
[1747758641746,1.01020935,2475.1,2475.0,2.17404]
[1747758641948,1.81800935,2475.1,2475.0,1.3662]
[1747758642151,1.81800935,2475.1,2475.0,4.1062]
[1747758642650,1.81800935,2475.1,2475.0,14.03280152]
[1747758643045,1.01020935,2475.1,2475.0,14.03280152]
[1747758643954,1.81800935,2475.1,2475.0,14.03280152]
[1747758644346,1.81800935,2475.1,2475.0,13.22496152]
[1747758644347,0.81387054,2475.1,2475.0,13.22496152]
[1747758644746,2.83403054,2475.1,2475.0,3.35876152]
[1747758644948,6.04183054,2475.1,2475.0,3.35876152]
[1747758645148,11.04183054,2475.1,2475.0,0.61876152]
[1747758645441,14.02183054,2475.1,2475.0,0.61876152]
[1747758645845,0.80784,2475.0,2474.9,0.9468]
[1747758646052,2.77564,2475.0,2474.9,0.9468]
[1747758646246,4.795885,2475.0,2474.9,0.9468]
[1747758649857,9.325885,2475.0,2474.9,0.9468]
[1747758650747,4.795885,2475.0,2474.9,1.03166477]
[1747758651147,4.795885,2475.0,2474.9,4.57953477]
[1747758651348,0.80784,2475.0,2474.9,12.25466477]
[1747758651755,4.210785,2475.0,2474.9,3.77166477]
[1747758651957,4.870285,2475.0,2474.9,3.77166477]
[1747758652157,4.870285,2475.0,2474.9,1.03166477]
[1747758653160,2.85004,2475.0,2474.9,1.03166477]
[1747758654256,3.21387054,2475.1,2474.9,1.83953477]
[1747758654458,0.00607054,2475.1,2475.0,5.30654]
[1747758654662,0.00607054,2475.1,2475.0,6.66134]
[1747758654855,0.00607054,2475.1,2475.0,11.66134]
[1747758655254,0.00607054,2475.1,2475.0,14.40134]
[1747758655461,0.00607054,2475.1,2475.0,9.40134]
[1747758655761,0.00607054,2475.1,2475.0,10.01989011]
[1747758655962,0.00607054,2475.1,2475.0,15.01989011]
[1747758656156,1.00913063,2475.1,2475.0,15.01989011]
[1747758656359,1.81693063,2475.1,2475.0,10.01989011]
[1747758656855,1.00913063,2475.1,2475.0,10.01989011]
[1747758657457,1.00913063,2475.1,2475.0,18.50189011]
[1747758658059,1.81693063,2475.1,2475.0,18.50189011]
[1747758658261,1.00913063,2475.1,2475.0,18.50189011]
[1747758659763,0.00607054,2475.1,2475.0,18.50189011]
[1747758660859,0.81387054,2475.1,2475.0,18.50189011]
[1747758661163,0.81387054,2475.1,2475.0,10.01989011]
[1747758661364,0.81387054,2475.1,2475.0,17.69405011]
[1747758661756,0.81387054,2475.1,2475.0,16.99055011]
[1747758662059,0.81387054,2475.1,2475.0,17.14709011]
[1747758662060,2.83403054,2475.1,2475.0,17.14709011]
[1747758662256,0.00607054,2475.1,2475.0,17.14709011]
[1747758662451,0.81387054,2475.1,2475.0,17.14709011]
[1747758662967,0.81387054,2475.1,2475.0,17.0729628]
[1747758663167,0.00607054,2475.1,2475.0,17.0729628]
[1747758664663,0.00607054,2475.1,2475.0,17.14709011]
[1747758664858,0.00607054,2475.1,2475.0,22.14709011]
[1747758665460,0.00607054,2475.1,2475.0,8.66509011]
[1747758665461,0.81387054,2475.1,2475.0,8.66509011]
[1747758665767,0.81387054,2475.1,2475.0,17.75209011]
[1747758665959,0.00607054,2475.1,2475.0,17.83695488]
[1747758667766,0.81387054,2475.1,2475.0,17.83695488]
[1747758667972,0.00607054,2475.1,2475.0,17.83695488]
[1747758668166,0.00607054,2475.1,2475.0,17.98478705]
[1747758669768,0.00607054,2475.1,2475.0,17.54153928]
[1747758670263,0.81387054,2475.1,2475.0,16.73369928]
[1747758670473,1.45407054,2475.1,2475.0,6.96179928]
[1747758670658,3.47423054,2475.1,2475.0,4.56183928]
[1747758671067,3.47423054,2475.1,2475.0,5.86343928]
[1747758671267,3.47423054,2475.1,2475.0,5.05559928]
[1747758671669,3.47423054,2475.1,2475.0,5.86343928]
[1747758671866,0.00607054,2475.1,2475.0,5.86343928]
[1747758672071,0.00607054,2475.1,2475.0,10.86343928]
[1747758672369,0.00607054,2475.1,2475.0,5.86343928]
[1747758672969,0.00607054,2475.1,2475.0,6.15856242]
[1747758674666,0.00607054,2475.1,2475.0,10.86343928]
[1747758675173,0.6427,2475.7,2475.6,0.80764]
[1747758675371,1.81062009,2475.9,2475.5,10.49915]
[1747758675564,1.81062009,2475.9,2475.8,0.80758]
[1747758675763,1.00306009,2475.9,2475.8,0.80758]
[1747758676161,3.02257009,2475.9,2475.8,2.74]
[1747758676361,3.83011009,2475.9,2475.8,2.74]
[1747758676564,8.83011009,2475.9,2475.8,2.74]
[1747758676765,10.20961009,2475.9,2475.8,2.74]
[1747758678169,0.80758,2475.8,2475.7,0.9465]
[1747758678369,0.80758,2475.8,2475.7,1.75411]
[1747758678370,1.3795,2475.8,2475.7,1.75411]
[1747758678566,3.39909,2475.8,2475.7,1.75411]
[1747758679079,4.20667,2475.8,2475.7,2.07718475]
[1747758680480,1.3795,2475.8,2475.7,2.07718475]
[1747758680696,0.80758,2475.9,2475.8,0.80755]
[1747758680874,2.21843,2476.0,2475.9,0.80751]
[1747758681068,2.21843,2476.0,2475.9,12.02651]
[1747758682477,2.21843,2476.0,2475.9,12.34958475]
[1747758682779,1.4109,2476.0,2475.9,12.34958475]
[1747758682978,0.00607054,2476.1,2476.0,0.80751]
[1747758683272,1.00306009,2476.6,2476.5,0.80735]
[1747758683480,1.00306009,2476.6,2476.5,12.49315]
[1747758684069,1.00306009,2476.6,2476.5,13.89535]
[1747758684272,1.00306009,2476.6,2476.5,16.63535]
[1747758684677,1.00306009,2476.6,2476.5,8.92287856]
[1747758684874,1.00306009,2476.6,2476.5,17.40087856]
[1747758686277,0.00605816,2476.8,2476.7,0.80728]
[1747758687580,0.00605816,2476.8,2476.7,2.42975475]
[1747758689778,0.00605816,2476.8,2476.7,7.42975475]
[1747758690574,0.00605816,2476.8,2476.7,7.72407629]
[1747758691373,0.00605816,2476.8,2476.7,2.72407629]
[1747758691978,0.00605816,2476.8,2476.7,11.19907629]
[1747758692281,0.00605816,2476.8,2476.7,10.90475475]
[1747758692977,8.16e-06,2476.8,2476.7,15.90475475]
[1747758693774,0.6429,2477.6,2477.5,0.80702]
[1747758693978,2.0443,2477.7,2477.6,0.80699]
[1747758694179,2.0443,2477.7,2477.6,2.10049]
[1747758694674,0.80688,2478.0,2477.6,1.2935]
[1747758694871,2.87771155,2478.0,2477.9,0.80686]
[1747758695067,2.87771155,2478.0,2477.9,12.02086]
[1747758695671,2.87771155,2478.0,2477.9,11.214]
[1747758695872,2.87771155,2478.0,2477.9,12.02089]
[1747758696282,2.87771155,2478.0,2477.9,11.214]
[1747758696485,4.89550655,2478.0,2477.9,11.214]
[1747758696672,4.89550655,2478.0,2477.9,2.74]
[1747758697274,0.80689,2477.9,2477.8,8.474]
[1747758697580,2.18629,2477.9,2477.8,8.474]
[1747758697780,4.20417,2477.9,2477.8,8.474]
[1747758698185,0.80696,2477.7,2477.6,0.00605816]
[1747758698384,0.80702,2477.5,2477.4,0.32307475]
[1747758698884,0.80709,2477.3,2477.2,9.28011]
[1747758699284,2.825455,2477.3,2477.2,8.473]
[1747758700189,2.825455,2477.3,2477.2,9.28012]
[1747758700583,2.825455,2477.3,2477.2,8.473]
[1747758701278,2.825455,2477.3,2477.2,9.28012]
[1747758701786,3.477455,2477.3,2477.2,9.28012]
[1747758702186,0.652,2477.3,2477.2,9.28012]
[1747758702388,0.6982,2477.6,2477.5,0.80702]
[1747758702590,0.6982,2477.6,2477.5,4.01482]
[1747758703084,1.51439155,2478.0,2477.9,0.80689]
[1747758703289,1.51439155,2478.0,2477.9,9.27889]
[1747758703481,2.72532655,2478.0,2477.9,9.27889]
[1747758704082,2.72532655,2478.0,2477.9,11.212]
[1747758704083,3.53218655,2478.0,2477.9,11.212]
[1747758704988,3.53218655,2478.0,2477.9,12.01889]
[1747758705686,2.72532655,2478.0,2477.9,12.01889]
[1747758705889,2.72532655,2478.0,2477.9,13.39619]
[1747758706285,3.53218655,2478.0,2477.9,11.212]
[1747758706488,4.89088655,2478.0,2477.9,11.212]
[1747758706790,4.89088655,2478.0,2477.9,12.01889]
[1747758707390,4.08402655,2478.0,2477.9,12.01889]
[1747758708283,2.06623155,2478.0,2477.9,12.01889]
[1747758708490,2.06623155,2478.0,2477.9,13.30609]
[1747758708684,1.36263155,2478.0,2477.9,13.30609]
[1747758708892,0.00393155,2478.0,2477.9,13.30609]
[1747758709200,0.00393155,2478.0,2477.9,13.62885376]
[1747758709487,0.00393155,2478.0,2477.9,13.62785376]
[1747758709687,1.37983155,2478.0,2477.9,13.62785376]
[1747758709990,0.00393155,2478.0,2477.9,13.62785376]
[1747758710190,0.00393155,2478.0,2477.9,13.84742387]
[1747758711491,0.00393155,2478.0,2477.9,13.9221753]
[1747758711683,0.00393155,2478.0,2477.9,5.4511753]
[1747758711883,0.00393155,2478.0,2477.9,13.9201753]
[1747758712095,0.00393155,2478.0,2477.9,5.4511753]
[1747758712294,0.00393155,2478.0,2477.9,13.9201753]
[1747758713184,0.00393155,2478.0,2477.9,13.62585376]
[1747758714296,0.00393155,2478.0,2477.9,14.06830757]
[1747758714797,0.00393155,2478.0,2477.9,4.31210757]
[1747758715096,0.00393155,2478.0,2477.9,14.16800757]
[1747758718898,0.00393155,2478.0,2477.9,14.25287234]
[1747758719797,0.00393155,2478.0,2477.9,14.16800757]
[1747758720796,0.00393155,2478.0,2477.9,17.37580757]
[1747758721793,1.55e-06,2478.0,2477.9,17.37580757]
[1747758722103,1.55e-06,2478.0,2477.9,22.37580757]
[1747758722598,1.55e-06,2478.0,2477.9,21.93335376]
[1747758722995,1.00306009,2479.6,2477.9,21.12646376]
[1747758723202,1.00306009,2479.6,2479.3,0.80644]
[1747758723397,2.03,2479.5,2479.3,9.27344]
[1747758723896,2.03,2479.5,2479.3,8.467]
[1747758723897,1.47364079,2479.4,2479.3,8.467]
[1747758724090,0.80647,2479.2,2479.1,3.21385816]
[1747758724294,0.80647,2479.2,2479.1,0.00605816]
[1747758724501,7.82329,2479.2,2479.1,0.00605816]
[1747758724987,4.15689,2479.2,2479.1,0.44728722]
[1747758725192,4.15689,2479.2,2479.1,1.25378722]
[1747758725387,3.35042,2479.2,2479.1,1.25378722]
[1747758726193,9.15689,2479.2,2479.1,0.44728722]
[1747758727002,9.15689,2479.2,2479.1,0.00605816]
[1747758727192,11.89689,2479.2,2479.1,0.00605816]
[1747758727393,6.89689,2479.2,2479.1,0.00605816]
[1747758728001,6.89689,2479.2,2479.1,0.81255816]
[1747758728198,4.15689,2479.2,2479.1,0.00605816]
[1747758728702,4.15689,2479.2,2479.1,0.81255816]
[1747758728997,4.15689,2479.2,2479.1,0.00605816]
[1747758729793,4.15689,2479.2,2479.1,0.81255816]
[1747758730497,4.15689,2479.2,2479.1,0.00605816]
[1747758731499,4.15689,2479.2,2479.1,8.47105816]
[1747758732100,4.15689,2479.2,2479.1,9.27755816]
[1747758732902,4.15689,2479.2,2479.1,9.6001903]
[1747758733195,4.15689,2479.2,2479.1,0.3286903]
[1747758733398,4.15689,2479.2,2479.1,8.7936903]
[1747758733701,3.35042,2479.2,2479.1,9.6001903]
[1747758734096,1.47539,2479.5,2479.2,2.01614]
[1747758734295,1.47539,2479.5,2479.4,0.8064]
[1747758734296,4.78785,2479.5,2479.4,0.8064]
[1747758734589,0.8064,2479.4,2479.1,9.01402725]
[1747758734795,0.80647,2479.2,2479.1,0.54902725]
[1747758734995,0.80647,2479.2,2479.1,9.01302725]
[1747758735292,2.82329,2479.2,2479.1,9.81952725]
[1747758735492,0.80646,2479.3,2479.2,0.80647]
[1747758735693,0.80647,2479.3,2479.2,0.80647]
[1747758735900,0.80647,2479.3,2479.2,1.12910214]
[1747758735901,2.82321,2479.3,2479.2,1.12910214]
[1747758736406,2.82321,2479.3,2479.2,0.32263214]
[1747758736700,7.82321,2479.3,2479.2,0.32263214]
[1747758736895,7.82321,2479.3,2479.2,1.12910214]
[1747758737096,2.82318,2479.3,2479.2,1.12910214]
[1747758737502,2.82318,2479.3,2479.2,0.32263214]
[1747758738092,2.82318,2479.3,2479.2,1.12910214]
[1747758738297,1.47539,2479.5,2479.2,0.32263214]
[1747758738498,2.68566,2479.5,2479.4,0.8064]
[1747758738704,0.669,2479.5,2479.4,0.8064]
[1747758738906,2.685575,2479.5,2479.4,0.8064]
[1747758739396,2.685575,2479.5,2479.4,1.12903214]
[1747758741205,0.00605816,2479.6,2479.5,0.80637]
[1747758741501,0.00605816,2479.6,2479.5,10.63057]
[1747758742093,0.00605816,2479.6,2479.5,11.32477]
[1747758742299,0.81239816,2479.6,2479.5,14.06477]
[1747758742506,0.81239816,2479.6,2479.5,13.37057]
[1747758742805,0.00605816,2479.6,2479.5,13.37057]
[1747758743807,0.00605816,2479.6,2479.5,13.91353909]
[1747758744108,0.81239816,2479.6,2479.5,12.54833909]
[1747758744302,2.82889316,2479.6,2479.5,11.74096909]
[1747758744509,2.82889316,2479.6,2479.5,12.54733909]
[1747758744702,0.81239816,2479.6,2479.5,12.54733909]
[1747758744902,0.00605816,2479.6,2479.5,12.53744911]
[1747758745103,0.00605816,2479.6,2479.5,13.87704911]
[1747758745904,0.00605816,2479.6,2479.5,13.65671216]
[1747758747308,0.81239816,2479.6,2479.5,13.65671216]
[1747758748216,0.00605816,2479.6,2479.5,10.92660214]
[1747758749103,0.81239816,2479.6,2479.5,10.92660214]
[1747758749408,0.00605816,2479.6,2479.5,10.92660214]
[1747758749807,2.82889316,2479.6,2479.5,0.32263214]
[1747758750003,2.82889316,2479.6,2479.4,0.22033695]
[1747758750004,0.80637,2479.5,2479.4,0.22033695]
[1747758750305,0.80653,2479.0,2478.9,7.7e-07]
[1747758750502,4.03316,2478.8,2478.0,1.01897709]
[1747758750707,0.80683,2478.1,2478.0,1.01897709]
[1747758750904,4.01463,2478.1,2478.0,1.01897709]
[1747758751208,7.802345,2478.1,2478.0,1.01897709]
[1747758751708,2.017715,2478.1,2478.0,0.80686]
[1747758752298,1.35455816,2478.3,2478.2,0.80679]
[1747758752605,1.35455816,2478.3,2478.0,2.74]
[1747758752606,3.37219316,2478.3,2478.0,2.74]
[1747758752999,0.80682,2478.2,2478.1,0.80682]
[1747758753199,0.80683,2478.1,2477.9,8.459]
[1747758753399,2.10556,2478.0,2477.9,9.26589]
[1747758753603,1.2987,2478.0,2477.9,9.26589]
[1747758753799,3.316495,2478.0,2477.9,9.26589]
[1747758753999,1.2987,2478.0,2477.9,9.26589]
[1747758754206,1.2987,2478.0,2477.9,12.00589]
[1747758755005,0.6697,2478.2,2478.1,0.80683]
[1747758755214,0.00605816,2478.3,2478.2,0.80679]
[1747758755506,0.00605816,2478.3,2478.2,4.01459]
[1747758755715,0.00605816,2478.3,2478.2,0.80679]
[1747758756310,0.00605816,2478.3,2478.2,9.26679]
[1747758756702,1.37555816,2478.3,2478.2,9.26679]
[1747758757508,4.19987316,2478.3,2478.2,8.46]
[1747758758206,4.19987316,2478.3,2478.2,9.26679]
[1747758758407,0.00605816,2478.3,2478.2,9.26679]
[1747758758612,0.00605816,2478.3,2478.2,10.61219]
[1747758758804,0.00605816,2478.3,2478.2,13.81999]
[1747758759409,0.6697,2478.8,2478.3,2.01689]
[1747758759708,2.12456,2478.7,2478.6,0.80666]
[1747758759904,1.3179,2478.7,2478.6,9.26666]
[1747758760106,3.335125,2478.7,2478.6,9.26666]
[1747758760312,0.6697,2478.8,2478.7,0.80663]
[1747758760507,0.8066,2478.8,2478.7,1.3454]
[1747758760805,2.1245,2478.8,2478.7,2.152]
[1747758761002,0.80666,2478.6,2478.5,4.01447]
[1747758761202,0.80665,2478.7,2478.6,0.80664]
[1747758761406,1.3749,2478.7,2478.6,0.80664]
[1747758761608,1.3749,2478.7,2478.6,2.18734]
[1747758761807,0.67329895,2478.9,2478.8,0.8066]
[1747758762003,4.87183395,2478.9,2478.8,0.8066]
[1747758762203,0.80662,2478.8,2478.7,0.80661]
[1747758762406,0.80663,2478.7,2478.6,0.80664]
[1747758762713,0.80666,2478.6,2478.5,8.46]
[1747758762913,2.18156,2478.6,2478.5,8.46]
[1747758763216,4.19887,2478.6,2478.5,8.46]
[1747758763405,4.19887,2478.6,2478.5,9.2667]
[1747758763619,4.19889,2478.6,2478.5,9.2667]
[1747758764005,3.39221,2478.6,2478.5,9.2667]
[1747758764514,0.00605816,2478.9,2478.8,0.8066]
[1747758764712,2.02312316,2478.9,2478.8,0.8066]
[1747758764915,2.02312316,2478.9,2478.7,0.80661]
[1747758765108,0.80663,2478.8,2478.7,0.80661]
[1747758765407,0.80666,2478.6,2478.5,12.4745]
[1747758765602,0.80666,2478.6,2478.5,3.2078]
[1747758765808,2.82397,2478.6,2478.5,8.46]
[1747758766207,3.48127,2478.6,2478.5,8.46]
[1747758766609,3.48127,2478.6,2478.5,9.2667]
[1747758766810,3.48127,2478.6,2478.4,0.80671]
[1747758767017,0.80673,2478.4,2478.3,1.12944206]
[1747758767213,0.80673,2478.4,2478.3,9.58944206]
[1747758767418,2.11262,2478.5,2478.4,0.80673]
[1747758767712,0.80673,2478.4,2478.3,0.32271206]
[1747758767910,2.82203,2478.4,2478.3,0.32271206]
[1747758768105,4.83950001,2478.4,2478.3,0.32271206]
[1747758768515,4.83950001,2478.4,2478.2,0.80678]
[1747758768516,0.80676,2478.3,2478.2,0.80678]
[1747758768705,2.13516,2478.3,2478.2,0.80678]
[1747758768904,4.152715,2478.3,2478.2,0.80678]
[1747758769316,0.80679,2478.2,2478.1,8.46]
[1747758769621,0.80683,2478.1,2478.0,9.26686]
[1747758769813,0.80683,2478.1,2478.0,8.46]
[1747758770015,3.511145,2478.1,2478.0,8.46]
[1747758770213,0.80686,2478.0,2477.9,4.01467]
[1747758770522,0.80689,2477.9,2477.8,0.81297816]
[1747758771018,2.82477,2477.9,2477.8,0.81297816]
[1747758771215,2.82477,2477.9,2477.8,2.74605816]
[1747758771216,4.22687,2477.9,2477.8,2.74605816]
[1747758771712,4.22687,2477.9,2477.8,2.83092293]
[1747758772110,9.22687,2477.9,2477.8,2.83092293]
[1747758772316,9.22687,2477.9,2477.8,0.09092293]
[1747758772513,9.22687,2477.9,2477.8,0.00605816]
[1747758772713,4.22687,2477.9,2477.8,0.00605816]
[1747758773016,3.41998,2477.9,2477.8,0.81297816]
[1747758773518,4.22687,2477.9,2477.8,0.81297816]